fUST/lending_fUST_20240622
["ID","MTS","AMOUNT","RATE_DAILY","PERIOD"]
[330117634,1719017438428,-872.30581485,0.0002489,2]
[330117636,1719017438437,-500.0,0.00024908,2]
[330117638,1719017438449,-500.0,0.00024908,2]
[330117639,1719017438459,-389.60157959,0.00024908,2]
[330117640,1719017438469,-20000.0,0.00024909,2]
[330117641,1719017438479,-500.0,0.00024999,2]
[330117642,1719017438489,-461.22953057,0.00024999,2]
[330117643,1719017438499,-500.0,0.00024999,2]
[330117644,1719017438509,-534.57557644,0.00024999,2]
[330117645,1719017438519,-461.59183925,0.00024999,2]
[330117646,1719017438529,-500.0,0.00024999,2]
[330117647,1719017438539,-500.0,0.00024999,2]
[330117648,1719017438549,-500.0,0.00024999,2]
[330117649,1719017438558,-500.0,0.00024999,2]
[330117650,1719017438568,-348.48129413,0.00024999,2]
[330117651,1719017438578,-500.0,0.00024999,2]
[330117652,1719017438587,-500.0,0.00024999,2]
[330117653,1719017438597,-500.0,0.00024999,2]
[330117654,1719017438607,-500.0,0.00024999,2]
[330117655,1719017438616,-500.0,0.00024999,2]
[330117656,1719017438626,-500.0,0.00024999,2]
[330117657,1719017438635,-500.0,0.00024999,2]
[330117658,1719017438644,-402.55950923,0.00024999,2]
[330117659,1719017438653,-500.0,0.00024999,2]
[330117660,1719017438664,-500.0,0.00024999,2]
[330117661,1719017438673,-500.0,0.00024999,2]
[330117662,1719017438683,-500.0,0.00024999,2]
[330117663,1719017438692,-500.0,0.00024999,2]
[330117664,1719017438702,-500.0,0.00024999,2]
[330117665,1719017438711,-500.0,0.00024999,2]
[330117666,1719017438721,-500.0,0.00024999,2]
[330117667,1719017438730,-500.0,0.00024999,2]
[330117668,1719017438739,-500.0,0.00024999,2]
[330117669,1719017438749,-16193.68322934,0.00025,4]
[330117736,1719018620770,410.5,0.00026,60]
[330117764,1719018632497,-163.2715501,0.00021056,2]
[330117766,1719018632507,-161.591052,0.00021096,2]
[330117768,1719018632517,-641.141854,0.00021096,2]
[330117769,1719018632526,-172.10924848,0.000211,2]
[330117782,1719018638849,-166.09039712,0.000211,2]
[330117783,1719018638859,-856.9,0.00021343,2]
[330117784,1719018638869,-270.3,0.00021343,2]
[330117785,1719018638879,-168.660892,0.0002138,2]
[330117786,1719018638888,-883.64024123,0.00021442,2]
[330117787,1719018638966,-7717.07775507,0.00021442,2]
[330117801,1719018640840,-3470.43577412,0.00021442,2]
[330117802,1719018640858,-12828.84622958,0.00021442,2]
[330117803,1719018640867,-180.254695,0.00021918,2]
[330117804,1719018640876,-856.9,0.0002243,2]
[330117805,1719018640886,-270.3,0.0002243,2]
[330117806,1719018640896,-269.74059937,0.000229,2]
[330117807,1719018640905,-878.16482601,0.00022999,2]
[330117808,1719018640914,-5000.0,0.00023,3]
[330117809,1719018640923,-945.37377419,0.00023409,2]
[330117810,1719018640933,-856.9,0.00023516,2]
[330117811,1719018640943,-270.3,0.00023516,2]
[330117812,1719018640953,-500.0,0.00023671,2]
[330117813,1719018640963,-209.95573106,0.00023671,2]
[330117814,1719018640974,-450.0,0.00023671,2]
[330117816,1719018640983,-6208.21505497,0.00023672,2]
[330117818,1719018640995,-807.59833872,0.00023672,2]
[330117844,1719018643645,-963.76406701,0.00023672,2]
[330117845,1719018643654,-500.0,0.00024135,2]
[330117846,1719018643664,-180.254695,0.00024482,2]
[330117847,1719018643673,-856.9,0.00024603,3]
[330117848,1719018643682,-270.3,0.00024603,3]
[330117849,1719018643692,-20000.0,0.00024725,2]
[330117850,1719018643701,-810.06405385,0.00024825,3]
[330117851,1719018643712,-796.71,0.0002499,3]
[330117852,1719018643723,-500.0,0.00024999,2]
[330117853,1719018643732,-500.0,0.00024999,2]
[330117854,1719018643741,-197.82507396,0.00024999,2]
[330117855,1719018643750,-291.55709218,0.00024999,2]
[330117856,1719018643759,-354.54438824,0.00024999,2]
[330117857,1719018643769,-500.0,0.00024999,2]
[330117858,1719018643778,-500.0,0.00024999,2]
[330117859,1719018643787,-500.0,0.00024999,2]
[330117861,1719018643796,-389.47649141,0.00024999,2]
[330117862,1719018643806,-500.0,0.00024999,2]
[330117863,1719018643815,-500.0,0.00024999,2]
[330117864,1719018643824,-500.0,0.00024999,2]
[330117865,1719018643833,-3806.31677066,0.00025,4]
[330117866,1719018643843,-15732.5875016,0.00025,4]
[330117867,1719018643859,-4267.4124984,0.00025,4]
[330117868,1719018643868,-12161.73795996,0.00025,4]
[330117870,1719018643878,-4168.00549882,0.00025,2]
[330117872,1719018643887,-181.53915781,0.00025,2]
[330117873,1719018643898,-260.51991624,0.00025,2]
[330117874,1719018643908,-457.6583212,0.00025,2]
[330117875,1719018643917,-10962.29416478,0.00025,2]
[330117883,1719019137942,2427.42682624,0.000225,30]
[330117902,1719019833064,-2192.38936963,0.0001819,2]
[330118134,1719020240737,258.24743035,0.0001,2]
[330118139,1719020347503,154.98866504,0.00012121,2]
[330118140,1719020350630,200.0,0.00026,60]
[330118177,1719020958158,-494.11255951,0.00018,2]
[330118194,1719021032269,-490.14773198,0.00017999,2]
[330118195,1719021032279,-19505.88744049,0.00018,2]
[330118196,1719021032288,-280.16619537,0.00018187,2]
[330118197,1719021032297,-587.59645345,0.00018219,2]
[330118199,1719021032306,-23655.35781679,0.00018842,2]
[330118217,1719021038082,-1142.67348107,0.00018842,2]
[330118229,1719021040498,-101.96870214,0.00018842,2]
[330118230,1719021040508,-975.24129519,0.00019078,2]
[330118231,1719021040518,-335.34867536,0.00019178,2]
[330118232,1719021040528,-286.31500222,0.00019544,2]
[330118233,1719021040538,-158.067183,0.000198,2]
[330118234,1719021040548,-1476.64305821,0.0002,2]
[330118235,1719021040560,-1281.10807788,0.0002,2]
[330118345,1719022232489,-241.6814545,0.000177,2]
[330118346,1719022232503,-9.13454549,0.00017999,2]
[330118440,1719022241045,-555.97733064,0.00017628,2]
[330118547,1719023387323,5962.53839035,0.00015,2]
[330118629,1719023433189,-245.7606939,0.00015012,2]
[330118631,1719023433199,-326.0293061,0.00015209,2]
[330118691,1719023439471,-963.07859754,0.00015116,2]
[330118733,1719023441000,-27.25726734,0.00015116,2]
[330118735,1719023441010,-495.47404628,0.0001521,2]
[330118737,1719023441023,-230.68292922,0.0001521,2]
[330118739,1719023441034,-509.01507068,0.0001559,4]
[330119052,1719023444100,-123.85295306,0.0001559,4]
[330119054,1719023444112,-358.14552546,0.0001559,4]
[330119056,1719023444122,-130.89235619,0.00015591,2]
[330119321,1719023446854,-110.20721649,0.00015591,2]
[330119322,1719023446863,-291.22943398,0.00015675,2]
[330119323,1719023446873,-286.31500222,0.00015848,2]
[330119324,1719023446881,-250.0,0.00015849,2]
[330119325,1719023446891,-3922.60095173,0.00016192,2]
[330119326,1719023446901,-155.19789957,0.00016192,2]
[330119327,1719023446915,-300.0,0.00016192,2]
[330119328,1719023446923,-6745.55763487,0.00016193,2]
[330119329,1719023446934,-5922.82723729,0.00016193,2]
[330119382,1719023963830,286.31500222,0.00015,2]
[330119389,1719024350741,26831.95416171,0.00025999,60]
[330119403,1719024542138,-488.27230417,0.00015002,2]
[330119405,1719024542197,-476.82769418,0.00015002,2]
[330119412,1719024558955,376.64637908,0.00015,2]
[330119415,1719024616771,166.21140778,0.00015,2]
[330119455,1719025119626,1012.44910577,0.00014975,2]
[330119456,1719025129980,3922.60095173,0.00015,2]
[330119457,1719025161764,155.24305525,0.00015,2]
[330119458,1719025186663,973.55128707,0.00015,2]
[330119459,1719025242184,24900.0,0.00014542,2]
[330119460,1719025286903,254.86392814,0.00015,2]
[330119461,1719025290487,354.02469508,0.00015,2]
[330119462,1719025346606,239.25151832,0.00015,7]
[330119463,1719025392651,5390.63121544,0.00014774,2]
[330119464,1719025533997,154.99861263,0.00015,2]
[330119492,1719025833118,-270.97417209,0.00015075,2]
[330119493,1719025833130,-892.41994913,0.00015075,2]
[330119494,1719025833142,-425.36037546,0.00015075,2]
[330119495,1719025833152,-587.59645345,0.00015075,2]
[330119496,1719025833160,-272.52272983,0.00015116,2]
[330119497,1719025833172,-3650.0782219,0.00015116,2]
[330119498,1719025833181,-24900.0,0.00015805,2]
[330119499,1719025833192,-490.14773198,0.00015934,2]
[330119501,1719025833202,-293.46413762,0.00016192,2]
[330119502,1719025833211,-154.77557542,0.00016192,2]
[330119504,1719025833221,-885.89296754,0.000179,2]
[330119506,1719025833230,-18696.79841051,0.00018,2]
[330119722,1719025847366,-1983.32249787,0.00017999,2]
[330119723,1719025847375,-1303.20158949,0.00018,2]
[330119724,1719025847386,-151.0,0.00018,2]
[330119725,1719025847395,-151.0,0.00018,2]
[330119726,1719025847404,-151.0,0.00018,2]
[330119727,1719025847415,-151.0,0.00018,2]
[330119728,1719025847426,-205.117246,0.00018,2]
[330119729,1719025847436,-151.0,0.00018,2]
[330119730,1719025847446,-151.0,0.00018,2]
[330119731,1719025847455,-151.0,0.00018,2]
[330119732,1719025847464,-151.0,0.00018,2]
[330119733,1719025847474,-151.0,0.00018,2]
[330119734,1719025847484,-151.0,0.00018,2]
[330119735,1719025847493,-151.0,0.00018,2]
[330119736,1719025847503,-501.25265,0.00018,2]
[330119737,1719025847512,-501.25265,0.00018,2]
[330119738,1719025847522,-501.25265,0.00018,2]
[330119739,1719025847531,-346.60071664,0.00018,2]
[330119740,1719025900306,5000.0,0.00015,2]
[330119741,1719025925437,5108.693,0.00015,2]
[330119743,1719026213850,13012.57508279,0.00015,2]
[330119744,1719026299807,8675.05005519,0.00015,2]
[330119745,1719026347018,151.0,0.000149,2]
[330119746,1719026386794,7229.20837933,0.00015,2]
[330119747,1719026467798,3766.41756563,0.00015,2]
[330119748,1719026559799,3766.41756563,0.00015,2]
[330119749,1719026666302,3766.41756563,0.00015,2]
[330119750,1719026744321,3766.41756563,0.00015,2]
[330119751,1719026828343,3766.41756563,0.00015,2]
[330119752,1719026911349,3766.41756563,0.00015,2]
[330119766,1719026992837,3766.41756563,0.00015,2]
[330119807,1719027032452,-292.92115938,0.00015116,2]
[330119809,1719027032462,-93.09101347,0.00015116,2]
[330119834,1719027040620,-199.83014591,0.00015116,2]
[330119835,1719027040632,-89.86432228,0.00015302,2]
[330119890,1719027046557,-710.13567772,0.00015302,2]
[330119891,1719027046567,-1429.09275691,0.00017399,2]
[330119902,1719027082336,3766.41756563,0.00015,2]
[330119903,1719027170836,3766.41756563,0.00015,2]
[330119904,1719027253347,3766.41756563,0.00015,2]
[330119906,1719027351347,3766.41756563,0.00015,2]
[330119908,1719027445379,1944.65705401,0.00015,2]
[330119909,1719027881453,273.0,0.00025999,60]
[330119913,1719028169334,2000.0,0.00025999,60]
[330119914,1719028194309,566.51366302,0.00014902,2]
[330119915,1719028225535,3922.60095173,0.00015,2]
[330119993,1719028240251,-2073.55806374,0.00016453,2]
[330120019,1719028459177,1100.0,0.000238,120]
[330120020,1719028601570,800.0,0.00014519,2]
[330120021,1719028716546,900.0,0.00014519,2]
[330120022,1719028764945,-1148.3909148,0.00015114,2]
[330120023,1719028764965,-1583.19802264,0.00015302,2]
[330120024,1719028764986,-286.31500222,0.0001534,2]
[330120025,1719028765007,-900.0,0.00015341,2]
[330120026,1719028765027,-281.39595445,0.00015552,2]
[330120027,1719028765047,-1809.3258989,0.00015553,2]
[330120028,1719028765067,-688.78463762,0.0001559,2]
[330120029,1719028765088,-250.0,0.00015865,2]
[330120030,1719028765108,-900.0,0.00016163,2]
[330120031,1719028765127,-3922.60095173,0.0001666,2]
[330120032,1719028765148,-24900.0,0.00016661,2]
[330120033,1719028765168,-900.0,0.00016985,2]
[330120034,1719028765189,-151.0,0.00017084,2]
[330120035,1719028765210,-151.0,0.00017084,2]
[330120036,1719028765230,-408.734717,0.00017084,2]
[330120037,1719028765251,-408.734717,0.00017084,2]
[330120038,1719028765271,-151.0,0.00017172,2]
[330120039,1719028765291,-151.0,0.00017172,2]
[330120040,1719028765311,-408.734717,0.00017172,2]
[330120041,1719028765331,-408.734717,0.00017172,2]
[330120042,1719028765353,-151.0,0.00017172,2]
[330120043,1719028765374,-5276.08774157,0.00017194,2]
[330120044,1719028765395,-153.0,0.00017808,2]
[330120045,1719028765415,-153.0,0.00017808,2]
[330120046,1719028765435,-153.0,0.00017808,2]
[330120047,1719028765456,-153.0,0.00017808,2]
[330120048,1719028765476,-154.8543545,0.00017808,2]
[330120049,1719028765499,-153.0,0.00017808,2]
[330120050,1719028765522,-153.0,0.00017808,2]
[330120051,1719028765542,-156.15864163,0.0001782,2]
[330120052,1719028765562,-151.0,0.00017899,2]
[330120053,1719028765582,-195.27463691,0.00017899,2]
[330120054,1719028765603,-151.0,0.00017899,2]
[330120055,1719028765625,-151.0,0.00017899,2]
[330120056,1719028765646,-408.734717,0.00017899,2]
[330120057,1719028765670,-408.734717,0.00017899,2]
[330120058,1719028765690,-153.0,0.000179,2]
[330120059,1719028765712,-155.115434,0.000179,2]
[330120060,1719028765733,-1117.68634914,0.00017999,2]
[330120061,1719028765758,-194.572213,0.00017999,2]
[330120062,1719028765777,-151.0,0.00017999,2]
[330120063,1719028765797,-151.0,0.00017999,2]
[330120064,1719028765819,-146.83094489,0.00017999,2]
[330120065,1719028837090,1000.0,0.00014519,2]
[330120067,1719028956101,1300.0,0.00014519,2]
[330120068,1719029045269,-1300.0,0.00015341,2]
[330120069,1719029045289,-1300.0,0.00016163,2]
[330120070,1719029045310,-935.87383619,0.00016984,2]
[330120071,1719029045331,-1300.0,0.00016985,2]
[330120072,1719029045352,-1191.09001838,0.00017082,2]
[330120073,1719029045372,-490.07682753,0.00017084,2]
[330120074,1719029045395,-286.2628025,0.00017084,2]
[330120075,1719029045417,-1148.3909148,0.00017084,2]
[330120076,1719029045441,-197.62312641,0.00017084,2]
[330120077,1719029045462,-1850.68247419,0.00017177,2]
[330120078,1719029075433,1200.0,0.00014519,2]
[330120079,1719029134807,-1200.0,0.00015341,2]
[330120080,1719029134837,-1200.0,0.00016163,2]
[330120081,1719029134865,-2600.0,0.00016452,2]
[330120082,1719029192347,-174.91159133,0.00017084,2]
[330120083,1719029192368,-401.8257769,0.00017084,2]
[330120084,1719029192387,-289.35401395,0.00017176,2]
[330120085,1719029192409,-23049.31752581,0.00017177,2]
[330120086,1719029192428,-1084.59109201,0.00017498,2]
[330120087,1719029196578,1000.0,0.00014519,2]
[330120179,1719029438309,-1000.0,0.00015341,2]
[330120181,1719029438319,-1000.0,0.00016163,2]
[330120182,1719029438328,-24900.0,0.00016554,2]
[330120183,1719029438338,-279.055179,0.00016619,2]
[330120184,1719029438348,-1000.0,0.00016985,2]
[330120185,1719029438357,-3791.91506124,0.00017398,2]
[330120187,1719029438367,-179.62501621,0.00017522,2]
[330120188,1719029438376,-305.32953539,0.00017523,2]
[330120190,1719029438386,-724.99217454,0.00017524,2]
[330120191,1719029438395,-271.70095132,0.00017524,2]
[330120193,1719029438405,-155.22885084,0.00017525,2]
[330120194,1719029438414,-155.0278566,0.00017527,2]
[330120196,1719029438424,-229.99332235,0.00017598,2]
[330120197,1719029438433,-5272.73601703,0.00017712,2]
[330120199,1719029438443,-417.40800972,0.00017899,2]
[330120200,1719029438453,-309.57179829,0.000179,2]
[330120201,1719029438463,-151.0,0.00017999,2]
[330120202,1719029438473,-151.0,0.00017999,2]
[330120203,1719029438483,-37891.13222411,0.00018,2]
[330120204,1719029438492,-20000.0,0.00018,2]
[330120205,1719029438502,-151.0,0.00018,2]
[330120206,1719029438511,-151.0,0.00018,2]
[330120207,1719029438521,-151.0,0.00018,2]
[330120208,1719029438532,-151.0,0.00018,2]
[330120209,1719029438541,-151.0,0.00018,2]
[330120210,1719029438551,-166.995851,0.00018,2]
[330120211,1719029438560,-151.00000026,0.00018,2]
[330120212,1719029438570,-155.93821,0.00018,2]
[330120213,1719029438579,-154.910297,0.00018,2]
[330120214,1719029438588,-151.0,0.00018,2]
[330120215,1719029438598,-151.0,0.00018,2]
[330120216,1719029438607,-4689.02415966,0.0001808,2]
[330120217,1719029438617,-245.0,0.00018081,2]
[330120218,1719029438626,-251.717716,0.00018081,2]
[330120219,1719029438636,-151.0,0.00018081,2]
[330120220,1719029438645,-1000.0,0.00018081,2]
[330120221,1719029438655,-151.0,0.00018172,2]
[330120222,1719029438665,-159.349895,0.00018172,2]
[330120223,1719029438675,-151.0,0.00018172,2]
[330120224,1719029438684,-151.0,0.00018172,2]
[330120225,1719029438694,-151.0,0.00018348,2]
[330120226,1719029438703,-151.0,0.00018348,2]
[330120227,1719029438714,-151.0,0.00018348,2]
[330120228,1719029438724,-151.0,0.00018629,2]
[330120229,1719029438734,-208.422994,0.00018629,2]
[330120230,1719029438743,-153.0,0.0001863,2]
[330120231,1719029438754,-309.57179829,0.00018879,2]
[330120232,1719029438763,-159.83671,0.00018903,2]
[330120233,1719029438773,-286.114302,0.00018903,2]
[330120234,1719029438782,-286.114302,0.00018903,2]
[330120235,1719029438792,-159.56278405,0.00018903,2]
[330120236,1719029438801,-154.95929032,0.00018903,2]
[330120237,1719029438811,-525.29379384,0.00019,2]
[330120238,1719029438820,-1000.0,0.00019177,2]
[330120239,1719029438829,-500.0,0.00019178,2]
[330120240,1719029438839,-500.0,0.00019178,2]
[330120241,1719029438849,-500.0,0.00019178,2]
[330120242,1719029438858,-500.0,0.00019178,2]
[330120243,1719029438868,-318.9748285,0.00019178,2]
[330120244,1719029438881,-500.0,0.00019178,2]
[330120245,1719029438891,-500.0,0.00019178,2]
[330120246,1719029438900,-500.0,0.00019178,2]
[330120247,1719029438910,-500.0,0.00019178,2]
[330120248,1719029438921,-500.0,0.00019178,2]
[330120249,1719029438930,-500.0,0.00019178,2]
[330120250,1719029438940,-500.0,0.00019178,2]
[330120251,1719029438950,-500.0,0.00019178,2]
[330120252,1719029438960,-500.0,0.00019178,2]
[330120253,1719029438970,-500.0,0.00019178,2]
[330120254,1719029438980,-500.0,0.00019178,2]
[330120255,1719029438989,-500.0,0.00019178,2]
[330120256,1719029438997,-500.0,0.00019178,2]
[330120257,1719029439007,-500.0,0.00019178,2]
[330120258,1719029439016,-500.0,0.00019178,2]
[330120259,1719029439026,-500.0,0.00019178,2]
[330120260,1719029439036,-500.0,0.00019178,2]
[330120261,1719029439046,-500.0,0.00019178,2]
[330120262,1719029439056,-500.0,0.00019178,2]
[330120263,1719029439066,-500.0,0.00019178,2]
[330120264,1719029439075,-500.0,0.00019178,2]
[330120265,1719029439085,-500.0,0.00019178,2]
[330120266,1719029439094,-500.0,0.00019178,2]
[330120267,1719029439104,-500.0,0.00019178,2]
[330120268,1719029439113,-500.0,0.00019178,2]
[330120269,1719029439122,-500.0,0.00019178,2]
[330120270,1719029439131,-500.0,0.00019178,2]
[330120271,1719029439141,-500.0,0.00019178,2]
[330120272,1719029439151,-500.0,0.00019178,2]
[330120273,1719029439160,-500.0,0.00019178,2]
[330120274,1719029439169,-500.0,0.00019178,2]
[330120275,1719029439179,-500.0,0.00019178,2]
[330120276,1719029439188,-300.0,0.00019178,2]
[330120277,1719029439198,-502.36350839,0.00019178,2]
[330120278,1719029439207,-198.81027917,0.00019178,2]
[330120279,1719029439216,-408.86158707,0.00019178,2]
[330120280,1719029439226,-500.0,0.00019178,2]
[330120281,1719029439235,-500.0,0.00019178,2]
[330120282,1719029439244,-500.0,0.00019178,2]
[330120283,1719029439254,-500.0,0.00019178,2]
[330120284,1719029439263,-500.0,0.00019178,2]
[330120285,1719029439273,-327.41145516,0.00019178,2]
[330120286,1719029439282,-500.0,0.00019178,2]
[330120287,1719029439291,-500.0,0.00019178,2]
[330120288,1719029439300,-500.0,0.00019178,2]
[330120289,1719029439309,-337.4067175,0.00019178,2]
[330120290,1719029439319,-500.0,0.00019178,2]
[330120291,1719029439329,-195.78508991,0.00019178,2]
[330120292,1719029439339,-390.91431824,0.00019178,2]
[330120293,1719029439349,-500.0,0.00019178,2]
[330120294,1719029439360,-500.0,0.00019178,2]
[330120295,1719029439370,-500.0,0.00019178,2]
[330120296,1719029439380,-500.0,0.00019178,2]
[330120297,1719029439390,-500.0,0.00019178,2]
[330120298,1719029439399,-244.25259825,0.00019178,2]
[330120299,1719029439408,-500.0,0.00019178,2]
[330120300,1719029439418,-500.0,0.00019178,2]
[330120301,1719029439427,-500.0,0.00019178,2]
[330120302,1719029439438,-500.0,0.00019178,2]
[330120303,1719029439448,-500.0,0.00019178,2]
[330120304,1719029439458,-500.0,0.00019178,2]
[330120305,1719029439467,-500.0,0.00019178,2]
[330120306,1719029439477,-500.0,0.00019178,2]
[330120307,1719029439487,-500.0,0.00019178,2]
[330120308,1719029439499,-500.0,0.00019178,2]
[330120309,1719029439508,-412.05683897,0.00019178,2]
[330120310,1719029439518,-500.0,0.00019178,2]
[330120311,1719029439528,-500.0,0.00019178,2]
[330120312,1719029439537,-500.0,0.00019178,2]
[330120313,1719029439546,-500.0,0.00019178,2]
[330120314,1719029439556,-500.0,0.00019178,2]
[330120315,1719029439565,-500.0,0.00019178,2]
[330120316,1719029439575,-500.0,0.00019178,2]
[330120317,1719029439584,-500.0,0.00019178,2]
[330120318,1719029439594,-500.0,0.00019178,2]
[330120319,1719029439604,-500.0,0.00019178,2]
[330120320,1719029439614,-500.0,0.00019178,2]
[330120321,1719029439623,-500.0,0.00019178,2]
[330120322,1719029439632,-494.46820678,0.00019178,2]
[330120323,1719029439642,-500.0,0.00019178,2]
[330120324,1719029439651,-500.0,0.00019178,2]
[330120325,1719029439661,-500.0,0.00019178,2]
[330120326,1719029439671,-500.0,0.00019178,2]
[330120327,1719029439681,-500.0,0.00019178,2]
[330120328,1719029439690,-270.84183297,0.00019178,2]
[330120329,1719029439700,-500.0,0.00019178,2]
[330120330,1719029439709,-233.03088115,0.00019178,2]
[330120331,1719029439719,-255.91886644,0.00019178,2]
[330120332,1719029439728,-436.40696925,0.00019178,2]
[330120333,1719029439737,-500.0,0.00019178,2]
[330120334,1719029439747,-282.88659872,0.00019178,2]
[330120335,1719029439756,-361.92919797,0.00019178,2]
[330120336,1719029439766,-500.0,0.00019178,2]
[330120337,1719029439776,-200.0,0.00019178,2]
[330120338,1719029439786,-500.0,0.00019178,2]
[330120339,1719029439795,-500.0,0.00019178,2]
[330120341,1719029439804,-250.0,0.00019178,2]
[330120342,1719029439814,-500.0,0.00019178,2]
[330120343,1719029439823,-500.0,0.00019178,2]
[330120344,1719029439832,-500.0,0.00019178,2]
[330120345,1719029439841,-500.0,0.00019178,2]
[330120346,1719029439850,-500.0,0.00019178,2]
[330120347,1719029439859,-450.0,0.00019178,2]
[330120348,1719029439870,-500.92037592,0.00019178,2]
[330120349,1719029439883,-500.0,0.00019178,2]
[330120350,1719029439892,-502.98055054,0.00019178,2]
[330120351,1719029439901,-500.0,0.00019178,2]
[330120352,1719029439910,-500.0,0.00019178,2]
[330120353,1719029439920,-500.0,0.00019178,2]
[330120354,1719029439929,-542.76184568,0.00019178,2]
[330120355,1719029439938,-500.0,0.00019178,2]
[330120356,1719029439947,-500.0,0.00019178,2]
[330120357,1719029439957,-500.0,0.00019178,2]
[330120358,1719029439966,-192.98051212,0.00019178,2]
[330120359,1719029439975,-500.0,0.00019178,2]
[330120360,1719029439984,-500.0,0.00019178,2]
[330120361,1719029439993,-500.0,0.00019178,2]
[330120362,1719029440002,-500.0,0.00019178,2]
[330120363,1719029440012,-500.0,0.00019178,2]
[330120364,1719029440021,-500.0,0.00019178,2]
[330120365,1719029440032,-519.18399122,0.00019178,2]
[330120366,1719029440042,-290.93161065,0.00019178,2]
[330120367,1719029440051,-4616.22564015,0.00019178,2]
[330120368,1719029440060,-151.0,0.00019178,2]
[330120369,1719029440069,-279.466371,0.00019178,2]
[330120370,1719029440078,-151.0,0.00019178,2]
[330120371,1719029440087,-151.0,0.00019178,2]
[330120372,1719029440097,-151.0,0.00019178,2]
[330120373,1719029440106,-151.0,0.00019178,2]
[330120374,1719029440114,-151.0,0.00019178,2]
[330120375,1719029440124,-251.733455,0.00019178,2]
[330120376,1719029440133,-179.185307,0.00019178,2]
[330120377,1719029440142,-179.185307,0.00019178,2]
[330120378,1719029440151,-179.185307,0.00019178,2]
[330120380,1719029440161,-179.185307,0.00019178,2]
[330120382,1719029440170,-152.019473,0.00019178,2]
[330120384,1719029440179,-179.185307,0.00019178,2]
[330120386,1719029440189,-179.185307,0.00019178,2]
[330120387,1719029440198,-179.185307,0.00019178,2]
[330120389,1719029440208,-179.185307,0.00019178,2]
[330120391,1719029440217,-179.185307,0.00019178,2]
[330120393,1719029440226,-179.185307,0.00019178,2]
[330120395,1719029440235,-179.185307,0.00019178,2]
[330120396,1719029440244,-179.185307,0.00019178,2]
[330120398,1719029440254,-179.185307,0.00019178,2]
[330120400,1719029440263,-179.185307,0.00019178,2]
[330120401,1719029440272,-179.185307,0.00019178,2]
[330120402,1719029440282,-179.185307,0.00019178,2]
[330120403,1719029440291,-179.185307,0.00019178,2]
[330120405,1719029440302,-179.185307,0.00019178,2]
[330120407,1719029440311,-179.185307,0.00019178,2]
[330120408,1719029440320,-179.185302,0.00019178,2]
[330120410,1719029440329,-151.0,0.00019178,2]
[330120411,1719029440339,-151.0,0.00019178,2]
[330120412,1719029440348,-151.0,0.00019178,2]
[330120413,1719029440357,-151.0,0.00019178,2]
[330120415,1719029440366,-151.0,0.00019178,2]
[330120417,1719029440375,-151.0,0.00019178,2]
[330120419,1719029440384,-151.0,0.00019178,2]
[330120421,1719029440393,-191.011749,0.00019178,2]
[330120423,1719029440402,-286.114302,0.00019178,2]
[330120425,1719029440412,-286.114302,0.00019178,2]
[330120427,1719029440421,-286.114302,0.00019178,2]
[330120429,1719029440430,-286.114302,0.00019178,2]
[330120431,1719029440439,-286.114302,0.00019178,2]
[330120433,1719029440448,-286.114302,0.00019178,2]